bitfinex/quotes_SOLUSD_20220101
["timestamp","ask_amount","ask_price","bid_price","bid_amount"]
[1641059240009,1.87423964,175.41,175.31,18.4727]
[1641059240408,0.26,175.41,175.31,18.4727]
[1641059240714,0.26,175.41,175.31,19.89939368]
[1641059241007,1.61423964,175.42,175.31,19.89939368]
[1641059241008,1.87423964,175.42,175.31,19.89939368]
[1641059241310,1.61423964,175.42,175.31,19.89939368]
[1641059241509,1.87423964,175.42,175.31,19.89939368]
[1641059241707,0.26,175.42,175.31,19.89939368]
[1641059242310,1.87423964,175.44,175.31,19.89939368]
[1641059242807,10.42613964,175.44,175.31,19.89939368]
[1641059243211,10.42613964,175.44,175.31,19.63939368]
[1641059243412,10.92613964,175.44,175.31,18.2127]
[1641059243609,10.16693964,175.43,175.31,18.4727]
[1641059243810,10.16693964,175.43,175.31,19.63939368]
[1641059243811,10.42693964,175.43,175.31,19.63939368]
[1641059244012,10.42693964,175.43,175.31,19.89939368]
[1641059246114,10.42693964,175.43,175.31,18.2127]
[1641059246312,10.92693964,175.43,175.31,8.5538]
[1641059246914,1.61423964,175.42,175.31,8.5538]
[1641059247116,8.5536,175.41,175.31,8.5538]
[1641059247616,8.8136,175.41,175.31,8.5538]
[1641059249116,10.42783964,175.41,175.31,8.5538]
[1641059250415,8.92783964,175.41,175.31,8.5538]
[1641059250821,1.61423964,175.41,175.32,1.42669368]
[1641059251116,1.61423964,175.42,175.36,8.5519]
[1641059251517,1.61423964,175.42,175.37,31.71195415]
[1641059251718,10.16683964,175.43,175.37,31.71195415]
[1641059251918,10.16683964,175.43,175.36,8.5519]
[1641059252119,10.42683964,175.43,175.31,9.6507]
[1641059252721,1.61423964,175.42,175.31,9.6507]
[1641059252921,1.61423964,175.42,175.36,25.3019271]
[1641059253121,1.87423964,175.42,175.36,25.3019271]
[1641059253323,1.87423964,175.42,175.33,8.33]
[1641059253324,8.8128,175.42,175.33,8.33]
[1641059253524,9.3128,175.42,175.33,8.33]
[1641059253820,1.61423964,175.41,175.33,8.33]
[1641059254022,1.87423964,175.41,175.33,8.33]
[1641059254421,1.87423964,175.41,175.34,34.85113805]
[1641059254622,0.26,175.41,175.34,43.18113805]
[1641059254822,0.26,175.41,175.34,34.85113805]
[1641059255024,10.42703964,175.42,175.34,34.85113805]
[1641059255423,8.8128,175.42,175.34,34.85113805]
[1641059255925,8.8128,175.42,175.32,8.5535]
[1641059256123,10.42703964,175.42,175.32,8.5535]
[1641059256324,10.42703964,175.42,175.33,8.33]
[1641059256725,10.42703964,175.42,175.34,31.69114724]
[1641059257126,10.42703964,175.42,175.34,40.24374724]
[1641059257530,8.8128,175.42,175.34,40.24374724]
[1641059257831,0.26,175.42,175.34,40.24374724]
[1641059258132,8.8121,175.44,175.34,40.24374724]
[1641059260946,8.5521,175.44,175.34,40.24374724]
[1641059263247,8.8121,175.44,175.34,40.24374724]
[1641059265552,8.8121,175.44,175.34,8.5526]
[1641059265750,9.3121,175.44,175.34,8.5526]
[1641059265952,8.8121,175.44,175.34,8.5526]
[1641059266153,1.61423964,175.43,175.34,8.5526]
[1641059266351,10.16643964,175.43,175.34,8.5526]
[1641059266550,10.42643964,175.43,175.34,35.18171429]
[1641059267052,8.8122,175.43,175.34,35.18171429]
[1641059267550,8.5522,175.43,175.34,35.18171429]
[1641059268852,8.5522,175.43,175.34,35.44171429]
[1641059269054,8.8122,175.43,175.34,35.44171429]
[1641059269258,0.26,175.43,175.34,35.44171429]
[1641059269452,0.26,175.43,175.34,43.77171429]
[1641059269653,10.42573964,175.45,175.34,43.77171429]
[1641059270152,8.8115,175.45,175.34,45.19840797]
[1641059270955,10.42573964,175.45,175.34,45.19840797]
[1641059272555,10.42573964,175.45,175.34,45.12071429]
[1641059272755,10.42573964,175.45,175.34,46.54740797]
[1641059273156,10.42573964,175.45,175.34,45.12071429]
[1641059277063,10.42573964,175.45,175.34,44.86071429]
[1641059277663,1.61423964,175.44,175.34,44.86071429]
[1641059277863,1.61423964,175.44,175.34,43.51171429]
[1641059278063,8.5529,175.41,175.34,43.51171429]
[1641059278464,8.8129,175.41,175.34,43.51171429]
[1641059278665,1.61423964,175.43,175.34,43.51171429]
[1641059279065,1.87423964,175.43,175.34,43.51171429]
[1641059279366,1.61423964,175.43,175.34,45.19840797]
[1641059279568,8.5518,175.44,175.34,45.19840797]
[1641059280567,8.8118,175.44,175.34,45.19840797]
[1641059281377,10.42603964,175.44,175.34,43.77171429]
[1641059281569,10.42603964,175.44,175.34,16.8826]
[1641059281770,10.92603964,175.44,175.34,8.33]
[1641059282266,8.5537,175.4,175.34,8.33]
[1641059282670,8.8137,175.4,175.34,8.33]
[1641059283269,8.8137,175.4,175.34,16.8832]
[1641059283970,8.8137,175.4,175.34,8.33]
[1641059286670,8.8137,175.4,175.34,16.8833]
[1641059287071,10.42793964,175.4,175.34,16.8833]
[1641059287377,10.42793964,175.4,175.34,8.5533]
[1641059287974,10.42793964,175.4,175.28,8.33]
[1641059288173,10.92793964,175.4,175.28,8.33]
[1641059288773,8.5558,175.35,175.28,8.33]
[1641059288974,8.8158,175.35,175.29,26.23388032]
[1641059293983,0.26,175.35,175.29,26.49388032]
[1641059294477,3.16803964,175.39,175.29,26.49388032]
[1641059294778,3.16803964,175.39,175.29,26.23388032]
[1641059295178,31.68793964,175.39,175.29,26.23388032]
[1641059295579,1.61423964,175.37,175.29,26.23388032]
[1641059295977,1.87423964,175.37,175.29,26.23388032]
[1641059296185,1.61423964,175.37,175.29,26.23388032]
[1641059296381,1.61423964,175.37,175.29,27.660574]
[1641059296579,2.90803964,175.39,175.29,27.660574]
[1641059296781,8.5555,175.36,175.29,36.215974]
[1641059296982,8.5555,175.36,175.29,8.5554]
[1641059297684,8.8155,175.36,175.29,8.5554]
[1641059298194,8.8155,175.36,175.24,8.33]
[1641059298394,14.8615,175.36,175.22,8.33]
[1641059298591,14.8615,175.36,175.2,8.5074]
[1641059298792,16.28819368,175.36,175.19,101.23]
[1641059299194,1.61423964,175.34,175.2,24.24212188]
[1641059299394,2.11423964,175.34,175.2,24.24212188]
[1641059299589,2.37423964,175.34,175.2,24.24212188]
[1641059299790,2.37423964,175.34,175.2,24.50212188]
[1641059299990,2.37423964,175.34,175.2,24.24212188]
[1641059300391,8.56,175.27,175.2,24.24212188]
[1641059300591,0.26,175.27,175.2,24.24212188]
[1641059301190,82.21883964,175.31,175.2,24.24212188]
[1641059301391,1.61423964,175.3,175.2,24.24212188]
[1641059301590,1.87423964,175.3,175.2,24.24212188]
[1641059301792,2.37423964,175.3,175.2,24.24212188]
[1641059302212,0.76,175.3,175.2,24.24212188]
[1641059302420,0.26,175.3,175.2,24.24212188]
[1641059302615,82.21883964,175.31,175.2,24.24212188]
[1641059302818,90.77923964,175.31,175.2,24.24212188]
[1641059304121,1.61423964,175.29,175.2,24.24212188]
[1641059304521,1.61423964,175.29,175.21,1.42669368]
[1641059304720,1.61423964,175.3,175.22,8.33]
[1641059305119,1.61423964,175.3,175.27,22.6670307]
[1641059305320,1.61423964,175.3,175.27,30.9970307]
[1641059305525,1.61423964,175.35,175.28,1.42669368]
[1641059306120,1.61423964,175.35,175.29,8.555]
[1641059306321,1.61423964,175.37,175.29,8.555]
[1641059306925,1.61423964,175.37,175.27,30.9970307]
[1641059306926,1.61423964,175.36,175.27,30.9970307]
[1641059307528,1.61423964,175.35,175.27,30.9970307]
[1641059308027,1.87423964,175.35,175.27,30.9970307]
[1641059308427,0.76,175.35,175.27,30.9970307]
[1641059308825,0.5,175.35,175.27,30.9970307]
[1641059309028,1.61423964,175.34,175.27,30.9970307]
[1641059309426,1.87423964,175.34,175.27,30.9970307]
[1641059310427,0.26,175.34,175.27,30.9970307]
[1641059310828,1.87423964,175.35,175.27,30.9970307]
[1641059311027,1.61423964,175.34,175.27,30.4970307]
[1641059311427,1.87423964,175.34,175.27,30.4970307]
[1641059312433,1.87423964,175.34,175.27,8.33]
[1641059312929,2.37423964,175.34,175.24,8.5575]
[1641059313129,1.61423964,175.34,175.24,8.5575]
[1641059313330,1.61423964,175.34,175.24,17.1475]
[1641059313530,1.61423964,175.34,175.25,28.75794528]
[1641059313734,1.61423964,175.34,175.26,8.5568]
[1641059313934,1.61423964,175.35,175.26,8.5568]
[1641059314632,1.87423964,175.35,175.26,8.5568]
[1641059314837,2.37423964,175.35,175.25,28.75794528]
[1641059315035,1.87423964,175.35,175.25,28.75794528]
[1641059315234,2.37423964,175.35,175.25,28.75794528]
[1641059315636,1.61423964,175.34,175.25,28.75794528]
[1641059315836,2.11423964,175.34,175.25,28.75794528]
[1641059316136,10.43223964,175.34,175.23,8.5584]
[1641059316335,1.61423964,175.33,175.22,8.33]
[1641059316537,1.87423964,175.33,175.22,9.601]
[1641059316738,1.87423964,175.33,175.22,11.02769368]
[1641059316937,0.26,175.33,175.23,30.59274667]
[1641059317341,1.87423964,175.34,175.23,30.59274667]
[1641059317539,2.37423964,175.34,175.24,8.5575]
[1641059317939,2.37423964,175.34,175.23,30.59274667]
[1641059318140,2.18669368,175.34,175.23,30.59274667]
[1641059318340,0.76,175.34,175.23,30.59274667]
[1641059318540,0.5,175.34,175.23,30.59274667]
[1641059318741,1.61423964,175.32,175.23,30.59274667]
[1641059318942,2.11423964,175.32,175.23,30.59274667]
[1641059319143,2.37423964,175.32,175.23,30.59274667]
[1641059320042,10.93323964,175.32,175.23,30.59274667]
[1641059320845,10.93323964,175.32,175.2,18.22]
[1641059321059,10.93323964,175.32,175.2,8.33]
[1641059321459,10.43323964,175.32,175.2,8.33]
[1641059321660,9.319,175.32,175.2,8.33]
[1641059321860,9.319,175.32,175.21,26.23533864]
[1641059322060,8.819,175.32,175.21,34.79473864]
[1641059322260,1.61423964,175.31,175.21,34.79473864]
[1641059322660,10.43343964,175.31,175.21,34.79473864]
[1641059322860,9.3192,175.31,175.21,34.79473864]
[1641059323260,8.8192,175.31,175.21,34.79473864]
[1641059323662,10.43343964,175.31,175.21,34.79473864]
[1641059323862,10.93343964,175.31,175.21,34.79473864]
[1641059324064,10.93343964,175.31,175.21,26.23533864]
[1641059325463,8.5601,175.29,175.21,26.23533864]
[1641059325863,8.8201,175.29,175.21,26.23533864]
[1641059326063,1.61423964,175.3,175.21,26.23533864]
[1641059326666,80.84843964,175.32,175.21,26.23533864]
[1641059326865,81.34843964,175.32,175.21,26.23533864]
[1641059327066,80.84843964,175.32,175.21,26.23533864]
[1641059327267,79.2342,175.32,175.21,26.23533864]
[1641059327468,79.4942,175.32,175.21,26.23533864]
[1641059327670,88.0527,175.32,175.21,34.79473864]
[1641059328072,88.2927,175.32,175.21,34.79473864]
[1641059328670,89.90693964,175.32,175.21,34.79473864]
[1641059329370,89.40693964,175.32,175.21,34.79473864]
[1641059329571,90.16693964,175.32,175.21,34.79473864]
[1641059329770,89.66693964,175.32,175.21,34.79473864]
[1641059329972,89.40693964,175.32,175.21,34.79473864]
[1641059330372,87.7927,175.32,175.21,34.79473864]
[1641059330570,87.7927,175.32,175.21,43.12473864]
[1641059331072,88.2927,175.32,175.21,43.12473864]
[1641059331271,87.7927,175.32,175.21,43.12473864]
[1641059331474,79.2342,175.32,175.21,43.38473864]
[1641059331672,1.61423964,175.33,175.21,43.12473864]
[1641059331874,2.11423964,175.33,175.21,43.12473864]
[1641059332472,2.37423964,175.33,175.21,43.12473864]
[1641059332875,1.87423964,175.33,175.21,43.12473864]
[1641059333073,1.61423964,175.32,175.21,43.12473864]
[1641059333474,1.87423964,175.32,175.21,43.12473864]
[1641059333674,1.87423964,175.32,175.21,44.55143232]
[1641059333874,0.26,175.32,175.21,44.55143232]
[1641059334075,10.43223964,175.33,175.21,44.55143232]
[1641059334380,10.67223964,175.33,175.21,44.45703864]
[1641059334575,10.17223964,175.33,175.21,46.14373232]
[1641059334976,10.17223964,175.33,175.21,45.88373232]
[1641059335177,10.67223964,175.33,175.21,45.88373232]
[1641059335376,10.67223964,175.33,175.21,44.45703864]
[1641059335975,1.61423964,175.32,175.21,8.33]
[1641059336176,8.5605,175.28,175.21,8.33]
[1641059336475,8.8205,175.28,175.21,8.33]
[1641059337375,8.8205,175.28,175.2,29.54590025]
[1641059337779,9.3205,175.28,175.2,29.54590025]
[1641059337976,8.5605,175.28,175.2,29.54590025]
[1641059338186,10.17363964,175.3,175.2,29.54590025]
[1641059338379,8.5594,175.3,175.2,29.54590025]
[1641059338779,8.5594,175.3,175.2,38.10590025]
[1641059338979,9.0594,175.3,175.2,38.10590025]
[1641059339381,9.3194,175.3,175.2,38.10590025]
[1641059339582,8.8194,175.3,175.2,38.10590025]
[1641059340782,9.8318,175.32,175.2,38.10590025]
[1641059341184,10.3318,175.32,175.2,38.10590025]
[1641059341583,9.8318,175.32,175.2,39.35620025]
[1641059341882,10.3318,175.32,175.2,39.35620025]
[1641059342382,10.0918,175.32,175.2,39.35620025]
[1641059342583,10.5918,175.32,175.2,39.35620025]
[1641059343386,10.5918,175.32,175.2,38.10590025]
[1641059343986,1.61423964,175.31,175.2,38.10590025]
[1641059344289,8.5595,175.3,175.2,38.10590025]
[1641059344489,8.8195,175.3,175.2,38.10590025]
[1641059344688,9.3195,175.3,175.2,38.10590025]
[1641059345494,9.3195,175.3,175.2,29.54590025]
[1641059346291,10.5674,175.3,175.2,29.54590025]
[1641059346493,1.61423964,175.28,175.16,75.626]
[1641059346691,1.61423964,175.28,175.14,87.93]
[1641059346692,1.61423964,175.28,175.14,79.6]
[1641059346991,3.80093332,175.28,175.14,79.6]
[1641059347214,1.61423964,175.26,175.14,79.6]
[1641059347418,2.11423964,175.26,175.15,24.05323646]
[1641059347613,2.37423964,175.26,175.15,24.05323646]
[1641059348015,2.37423964,175.26,175.15,25.38173646]
[1641059348214,9.3224,175.26,175.15,33.94373646]
[1641059348618,9.3224,175.26,175.12,8.33]
[1641059348913,10.93663964,175.26,175.12,8.33]
[1641059349313,9.8517,175.25,175.12,8.33]
[1641059349514,10.1117,175.25,175.12,8.33]
[1641059349713,10.6117,175.25,175.13,31.06161351]
[1641059349916,10.1117,175.25,175.13,31.06161351]
[1641059350115,10.6117,175.25,175.13,31.06161351]
[1641059350717,10.6117,175.25,175.13,39.62481351]
[1641059350915,12.22593964,175.25,175.13,39.62481351]
[1641059352517,3.16303964,175.25,175.13,39.62481351]
[1641059352718,3.66303964,175.25,175.13,39.62481351]
[1641059352919,7.66459892,175.25,175.13,39.62481351]
[1641059353418,7.66459892,175.25,175.13,40.92771351]
[1641059353818,3.66303964,175.25,175.13,40.92771351]
[1641059354018,12.22593964,175.25,175.13,40.92771351]
[1641059356823,10.6117,175.25,175.13,40.92771351]
[1641059358326,12.22593964,175.25,175.13,40.92771351]
[1641059361531,12.22593964,175.25,175.13,32.36451351]
[1641059361830,12.22593964,175.25,175.13,1.3029]
[1641059362033,12.22593964,175.25,175.1,72.0161]
[1641059362434,13.65263332,175.25,175.1,72.0161]
[1641059362632,1.61423964,175.24,175.1,72.0161]
[1641059362834,8.5649,175.21,175.1,72.0161]
[1641059363132,8.8249,175.21,175.1,72.0161]
[1641059363336,9.3249,175.21,175.1,72.0161]
[1641059364836,9.3249,175.21,175.09,40.15723628]
[1641059365235,10.75159368,175.21,175.09,40.15723628]
[1641059365435,10.93913964,175.21,175.09,40.15723628]
[1641059366035,1.3097,175.2,175.09,40.15723628]
[1641059366237,14.33883391,175.19,175.09,18.2265]
[1641059366437,14.83883391,175.19,175.06,77.1507]
[1641059366636,15.09883391,175.19,175.06,78.4929]
[1641059367237,1.2693,175.18,175.06,78.4929]
[1641059367438,8.5673,175.16,175.06,78.4929]
[1641059367937,9.3273,175.16,175.06,78.4929]
[1641059368139,0.77378751,175.15,175.06,78.4929]
[1641059369137,9.0673,175.16,175.06,78.4929]
[1641059369537,9.3273,175.16,175.06,78.4929]
[1641059370141,0.76,175.16,175.06,87.0594]
[1641059370541,10.3358,175.18,175.06,87.0594]
[1641059371739,1.7693,175.18,175.06,87.0594]
[1641059371939,1.5293,175.18,175.06,87.0594]
[1641059372141,2.0293,175.18,175.06,87.0594]
[1641059373340,1.7693,175.18,175.06,87.0594]
[1641059373569,1.2693,175.18,175.06,87.0594]
[1641059373964,1.2693,175.18,175.06,95.3894]
[1641059374165,1.7693,175.18,175.06,95.3894]
[1641059374570,2.0293,175.18,175.06,95.3894]
[1641059375366,10.5954,175.18,175.06,78.4929]
[1641059377767,10.5954,175.18,175.06,84.4269]
[1641059378068,12.20963964,175.18,175.06,84.4269]
[1641059378869,10.5954,175.18,175.06,84.4269]
[1641059379469,10.5954,175.18,175.06,8.5666]
[1641059379670,10.5954,175.18,175.05,1.294]
[1641059380168,12.20963964,175.18,175.05,1.294]
[1641059380368,12.20963964,175.18,175.05,0.294]
[1641059380770,12.20963964,175.18,175.04,35.73553487]
[1641059382983,3.64353964,175.18,175.04,35.99553487]
[1641059383178,3.64353964,175.18,175.08,8.5654]
[1641059383380,2.0293,175.18,175.08,8.5654]
[1641059383579,1.7693,175.18,175.09,23.42404212]
[1641059384178,1.7693,175.18,175.05,1.2674]
[1641059385078,1.42669368,175.17,175.05,1.2674]
[1641059385281,1.61423964,175.17,175.06,26.84600201]
[1641059385479,2.37423964,175.17,175.06,26.84600201]
[1641059386382,2.11423964,175.17,175.06,26.84600201]
[1641059386782,1.61423964,175.17,175.06,26.84600201]
[1641059387181,2.89423964,175.19,175.06,26.84600201]
[1641059387381,11.95983964,175.19,175.06,35.41240201]
[1641059388185,10.3456,175.19,175.06,35.41240201]
[1641059388782,10.3456,175.19,175.06,36.69710201]
[1641059389582,10.6056,175.19,175.06,36.69710201]
[1641059390085,10.1056,175.19,175.06,36.69710201]
[1641059390286,10.3456,175.19,175.06,36.69710201]
[1641059390488,1.78,175.19,175.06,36.69710201]
[1641059390689,3.20669368,175.19,175.06,36.69710201]
[1641059391188,1.78,175.19,175.06,36.69710201]
[1641059391390,3.39423964,175.19,175.06,36.69710201]
[1641059391589,12.21993964,175.19,175.06,36.69710201]
[1641059392089,10.6057,175.19,175.06,36.69710201]
[1641059394501,13.64663332,175.19,175.06,36.69710201]
[1641059395299,12.21993964,175.19,175.06,36.69710201]
[1641059395699,10.6057,175.19,175.06,36.69710201]
[1641059396099,12.03239368,175.19,175.06,36.69710201]
[1641059396503,13.64663332,175.19,175.06,36.69710201]
[1641059397004,2.89423964,175.19,175.06,45.02710201]
[1641059397204,1.61423964,175.19,175.06,45.02710201]
[1641059397401,1.61423964,175.19,175.07,1.42669368]
[1641059397601,1.61423964,175.21,175.08,8.33]
[1641059397800,1.61423964,175.21,175.06,28.13070201]
[1641059397801,1.61423964,175.21,175.09,8.33]
[1641059398102,1.61423964,175.21,175.1,28.92767133]
[1641059398300,2.11423964,175.21,175.1,37.25767133]
[1641059398902,0.5,175.21,175.1,37.25767133]
[1641059399203,0.69744777,175.2,175.1,45.82207133]
[1641059399402,0.69744777,175.2,175.1,28.92767133]
[1641059399602,10.68884145,175.2,175.1,28.92767133]
[1641059399824,11.95534145,175.2,175.1,28.92767133]
[1641059400025,12.71534145,175.2,175.1,28.92767133]
[1641059400229,1.61423964,175.19,175.07,8.33]
[1641059400427,8.5665,175.16,175.05,1.2981]
[1641059400926,9.3265,175.16,175.05,1.2981]
[1641059401127,0.76,175.16,175.05,1.2981]
[1641059401527,1.4952,175.18,175.05,1.2981]
[1641059401727,1.9952,175.18,175.06,25.56366819]
[1641059402129,1.9952,175.18,175.06,54.11186819]
[1641059402328,0.76,175.18,175.06,54.11186819]
[1641059402527,0.5,175.18,175.06,54.11186819]
[1641059402728,9.065,175.19,175.06,54.11186819]
[1641059402930,9.065,175.19,175.1,8.5646]
[1641059403129,9.065,175.19,175.11,25.44909047]
[1641059403530,0.5,175.19,175.11,25.44909047]
[1641059403931,75.86793964,175.2,175.11,25.44909047]
[1641059404131,76.12793964,175.2,175.11,25.44909047]
[1641059404933,84.69243964,175.2,175.11,25.44909047]
[1641059406534,84.69243964,175.2,175.08,1.234]
[1641059406734,86.11913332,175.2,175.08,1.234]
[1641059406934,86.11913332,175.2,175.05,8.33]
[1641059407134,1.61423964,175.19,175.05,8.33]
[1641059407339,8.5667,175.15,175.05,16.8967]
[1641059407534,8.5667,175.15,175.07,31.47018156]
[1641059407535,8.8267,175.15,175.07,31.47018156]
[1641059407936,0.26,175.15,175.07,31.47018156]
[1641059408335,2.37423964,175.18,175.07,31.47018156]
[1641059408535,0.76,175.18,175.07,40.03638156]
[1641059408736,0.5,175.18,175.07,40.03638156]
[1641059408937,10.67933964,175.19,175.07,40.03638156]
[1641059409136,10.67933964,175.19,175.07,48.36638156]
[1641059410337,2.11423964,175.19,175.07,48.36638156]
[1641059410739,0.5,175.19,175.07,48.36638156]
[1641059410940,73.017,175.2,175.07,48.36638156]
[1641059411137,74.2472,175.2,175.07,48.36638156]
[1641059411339,75.86143964,175.2,175.07,48.36638156]
[1641059411537,76.12143964,175.2,175.07,48.36638156]
[1641059411737,84.68583964,175.2,175.08,1.2452]
[1641059411937,84.68583964,175.2,175.11,31.21966952]
[1641059413338,83.0716,175.2,175.11,31.21966952]
[1641059413841,83.0716,175.2,175.11,22.65546952]
[1641059414444,10.2946,175.2,175.11,22.65546952]
[1641059414640,0.5,175.2,175.11,22.65546952]
[1641059414840,2.11423964,175.21,175.11,22.65546952]
[1641059415042,0.5,175.21,175.11,22.65546952]
[1641059415240,0.5,175.21,175.11,31.21966952]
[1641059415442,2.11423964,175.22,175.11,31.21966952]
[1641059415642,2.11423964,175.22,175.11,39.54966952]
[1641059416042,2.37423964,175.22,175.11,39.54966952]
[1641059416443,0.76,175.22,175.11,39.54966952]
[1641059416844,77.31493964,175.23,175.11,39.54966952]
[1641059417043,1.61423964,175.22,175.11,39.54966952]
[1641059417445,2.11423964,175.22,175.11,39.54966952]
[1641059417747,0.5,175.22,175.11,39.54966952]
[1641059417943,75.4407,175.23,175.11,39.54966952]
[1641059418944,84.0033,175.23,175.11,39.54966952]
[1641059420150,84.2633,175.23,175.11,40.82156952]
[1641059420752,8.5635,175.21,175.11,40.82156952]
[1641059420949,9.0635,175.21,175.11,40.82156952]
[1641059421149,9.3235,175.21,175.11,40.82156952]
[1641059426073,9.0635,175.21,175.11,40.82156952]
[1641059426275,0.5,175.21,175.11,40.82156952]
[1641059426473,1.61423964,175.22,175.11,40.82156952]
[1641059426474,2.11423964,175.22,175.11,41.08156952]
[1641059426872,1.61423964,175.22,175.11,41.08156952]
[1641059427072,1.61423964,175.24,175.11,41.08156952]
[1641059427474,1.87423964,175.24,175.11,41.08156952]
[1641059427874,1.61423964,175.24,175.11,41.08156952]
[1641059428273,2.11423964,175.24,175.11,42.5082632]
[1641059429275,2.11423964,175.24,175.11,42.2482632]
[1641059429674,9.0622,175.24,175.11,42.2482632]
[1641059429878,9.3222,175.24,175.11,42.2482632]
[1641059430275,10.93643964,175.24,175.11,42.2482632]
[1641059430876,1.61423964,175.23,175.11,42.2482632]
[1641059431078,8.563,175.22,175.11,40.82156952]
[1641059431476,9.323,175.22,175.11,40.82156952]
[1641059431875,10.6613,175.22,175.11,40.82156952]
[1641059433076,5.31216003,175.21,175.11,40.82156952]
[1641059433279,8.5642,175.2,175.11,40.82156952]
[1641059433478,9.3242,175.2,175.11,40.82156952]
[1641059434182,10.6275,175.2,175.11,40.82156952]
[1641059434382,12.24173964,175.2,175.11,40.82156952]
[1641059434582,11.74173964,175.2,175.11,40.82156952]
[1641059434785,10.17843964,175.2,175.11,40.82156952]
[1641059435188,1.61423964,175.2,175.11,40.82156952]
[1641059435685,74.70923964,175.23,175.11,40.82156952]
[1641059435888,75.20923964,175.23,175.11,40.82156952]
[1641059436089,75.46923964,175.23,175.11,40.82156952]
[1641059436487,1.3284,175.22,175.11,40.82156952]
[1641059436687,9.8915,175.22,175.11,40.82156952]
[1641059436887,10.6515,175.22,175.11,40.82156952]
[1641059437691,12.26573964,175.22,175.11,40.82156952]
[1641059438089,3.70263964,175.22,175.11,40.82156952]
[1641059438288,0.76,175.22,175.11,40.82156952]
[1641059438492,0.5,175.22,175.11,42.5082632]
[1641059438690,2.11423964,175.23,175.11,42.5082632]
[1641059439093,1.61423964,175.23,175.11,42.5082632]
[1641059439497,1.61423964,175.25,175.11,42.5082632]
[1641059439789,1.61423964,175.25,175.11,117.1107632]
[1641059440191,1.61423964,175.26,175.11,117.1107632]
[1641059440591,1.87423964,175.26,175.11,117.1107632]
[1641059440793,1.87423964,175.26,175.11,116.8507632]
[1641059441594,2.37423964,175.26,175.11,116.8507632]
[1641059441994,10.93553964,175.26,175.11,116.8507632]
[1641059442396,10.17553964,175.26,175.11,116.8507632]
[1641059442594,1.61423964,175.26,175.11,116.8507632]
[1641059442793,1.61423964,175.26,175.11,117.1107632]
[1641059443395,2.11423964,175.26,175.11,117.1107632]
[1641059443599,2.11423964,175.26,175.11,116.8507632]
[1641059443798,2.37423964,175.26,175.11,116.8507632]
[1641059443997,1.3584,175.25,175.11,115.42406952]
[1641059444194,1.61423964,175.24,175.11,115.42406952]
[1641059444729,1.87423964,175.24,175.11,115.42406952]
[1641059444894,10.93633964,175.24,175.11,115.42406952]
[1641059446599,9.3221,175.24,175.11,115.42406952]
[1641059446799,1.3246,175.23,175.11,115.42406952]
[1641059446998,1.5846,175.23,175.11,115.42406952]
[1641059448601,10.1472,175.23,175.11,115.42406952]
[1641059448998,10.6472,175.23,175.11,115.42406952]
[1641059449399,10.3872,175.23,175.11,115.42406952]
[1641059449604,1.61423964,175.26,175.11,115.68406952]
[1641059449801,3.35063964,175.26,175.11,115.42406952]
[1641059450003,1.7364,175.26,175.11,115.68406952]
[1641059450202,1.7364,175.26,175.11,115.42406952]
[1641059450402,1.7364,175.26,175.11,116.8507632]
[1641059450602,1.7364,175.26,175.11,115.42406952]
[1641059451204,1.61423964,175.25,175.11,115.42406952]
[1641059451404,2.11423964,175.25,175.11,115.42406952]
[1641059451605,8.563,175.23,175.11,115.42406952]
[1641059451803,1.2666,175.22,175.11,115.42406952]
[1641059452004,1.5266,175.22,175.11,115.42406952]
[1641059452204,1.2666,175.22,175.11,115.42406952]
[1641059453504,1.5266,175.22,175.11,115.42406952]
[1641059453707,1.2666,175.22,175.11,115.42406952]
[1641059453907,1.61423964,175.23,175.11,115.68406952]
[1641059454506,10.17623964,175.24,175.11,115.68406952]
[1641059454907,8.562,175.24,175.11,115.68406952]
[1641059455208,8.822,175.24,175.11,115.68406952]
[1641059455409,8.822,175.24,175.11,115.42406952]
[1641059455610,10.43623964,175.24,175.11,115.42406952]
[1641059456009,1.29,175.23,175.11,115.42406952]
[1641059456212,9.8528,175.23,175.11,115.42406952]
[1641059456411,10.1128,175.23,175.11,115.42406952]
[1641059460217,0.26,175.23,175.11,116.8507632]
[1641059460417,1.61423964,175.24,175.11,117.1107632]
[1641059461220,10.17593964,175.25,175.11,117.1107632]
[1641059461917,10.43593964,175.25,175.11,117.1107632]
[1641059463615,9.88,175.24,175.11,117.1107632]
[1641059464019,10.14,175.24,175.11,117.1107632]